bitfinex/quotes_SOLUSD_20241223
["timestamp","ask_amount","ask_price","bid_price","bid_amount"]
[1734962244727,20.0,182.64,182.56,23.776884]
[1734962244913,20.0,182.64,182.54,12.98026758]
[1734962245317,20.0,182.64,182.55,0.12549]
[1734962245623,20.0,182.64,182.53,12.98026758]
[1734962245804,1.02675593,182.63,182.53,12.98026758]
[1734962246122,1.02675593,182.63,182.52,12.98026758]
[1734962246702,20.0,182.64,182.53,12.98026758]
[1734962247003,1.02675495,182.63,182.54,23.776884]
[1734962247406,1.02676936,182.63,182.54,23.776884]
[1734962248199,20.0,182.64,182.56,23.776884]
[1734962249341,1.0266906,182.63,182.56,23.776884]
[1734962250149,20.0,182.64,182.56,23.776884]
[1734962250315,1.02676115,182.63,182.56,23.776884]
[1734962251301,20.0,182.64,182.56,23.776884]
[1734962251634,20.0,182.64,182.55,23.776884]
[1734962252935,1.02675561,182.63,182.54,23.776884]
[1734962253823,1.02675561,182.63,182.53,23.776884]
[1734962254219,1.02675561,182.63,182.49,12.98026758]
[1734962254413,20.0,182.59,182.48,12.98026758]
[1734962254617,1.02710267,182.58,182.44,12.98026758]
[1734962254817,21.02710267,182.58,182.44,12.98026758]
[1734962255123,21.02710267,182.58,182.46,12.98026758]
[1734962255343,20.0,182.58,182.49,12.98026758]
[1734962255574,6.6339,182.62,182.52,12.98026758]
[1734962255828,6.6339,182.62,182.55,12.98026758]
[1734962256030,6.6339,182.62,182.56,23.776884]
[1734962258208,20.0,182.59,182.52,20.76632525]
[1734962258409,20.0,182.59,182.49,20.76632525]
[1734962258616,1.02703824,182.58,182.46,20.76632525]
[1734962259023,1.02703824,182.58,182.45,20.76632525]
[1734962259425,1.02703824,182.58,182.44,20.76632525]
[1734962259632,1.02703824,182.58,182.45,20.76632525]
[1734962260221,1.02703824,182.58,182.46,23.776884]
[1734962260511,1.02703824,182.58,182.46,44.54320925]
[1734962260738,1.02703824,182.58,182.48,20.76632525]
[1734962262025,1.02703824,182.58,182.49,23.776884]
[1734962264848,1.02703824,182.58,182.48,23.776884]
[1734962265570,8.30870655,182.64,182.58,23.776884]
[1734962266569,6.8537,182.66,182.58,23.776884]
[1734962266873,20.0,182.63,182.58,23.776884]
[1734962267062,6.3411,182.66,182.6,23.776884]
[1734962268537,20.6767104,182.69,182.6,44.54320925]
[1734962268931,20.6767104,182.69,182.6,23.776884]
[1734962269728,20.6767104,182.69,182.59,23.776884]
[1734962269929,20.6767104,182.69,182.59,23.902374]
[1734962270227,20.6767104,182.69,182.59,23.776884]
[1734962270435,20.6767104,182.69,182.59,44.54320925]
[1734962273963,1.02643371,182.68,182.59,23.776884]
[1734962274138,1.02643371,182.68,182.58,23.776884]
[1734962275138,20.6767104,182.69,182.58,44.53545172]
[1734962275946,1.02645517,182.68,182.58,44.53545172]
[1734962276165,20.6767104,182.69,182.58,44.53545172]
[1734962277866,1.02647428,182.68,182.56,20.75856772]
[1734962278692,21.02647428,182.68,182.56,20.75856772]
[1734962279187,21.02647428,182.68,182.57,23.776884]
[1734962280373,21.02647428,182.68,182.57,44.53545172]
[1734962280572,21.02647428,182.68,182.57,44.53539903]
[1734962280987,1.02647428,182.68,182.57,44.53539903]
[1734962281968,1.02647428,182.68,182.57,23.776884]
[1734962282183,1.02647428,182.68,182.56,23.776884]
[1734962282798,1.02647428,182.68,182.55,23.776884]
[1734962282969,20.0,182.64,182.54,23.776884]
[1734962283171,1.02683107,182.63,182.54,23.776884]
[1734962283481,20.0,182.64,182.54,23.776884]
[1734962283681,20.0,182.64,182.54,44.53539903]
[1734962283882,20.0,182.64,182.55,20.88400503]
[1734962284181,20.0,182.64,182.56,23.776884]
[1734962284796,20.0,182.64,182.56,44.53539903]
[1734962284989,20.0,182.64,182.56,23.776884]
[1734962285297,1.02670542,182.63,182.55,23.776884]
[1734962285794,1.02670542,182.63,182.54,23.776884]
[1734962285980,20.0,182.64,182.54,23.776884]
[1734962286179,1.02676443,182.63,182.54,23.776884]
[1734962286622,0.5126,182.62,182.52,23.776884]
[1734962286819,1.02690129,182.61,182.49,151.19433712]
[1734962287114,1.02690129,182.61,182.44,15.885463]
[1734962287115,20.0,182.57,182.48,12.97973712]
[1734962287317,20.0,182.57,182.48,13.10522712]
[1734962287521,6.1173,182.6,182.51,0.12549]
[1734962287721,20.0,182.61,182.54,12.97973712]
[1734962287894,20.0,182.61,182.52,12.97973712]
[1734962288080,20.0,182.61,182.53,23.776884]
[1734962288799,1.02684042,182.6,182.53,23.776884]
[1734962288999,20.0,182.61,182.52,23.776884]
[1734962289303,1.02693594,182.6,182.49,12.97973712]
[1734962290700,1.02693594,182.6,182.5,23.776884]
[1734962291086,1.02693594,182.6,182.5,36.75662112]
[1734962291591,1.02693594,182.6,182.5,23.776884]
[1734962292199,6.1708,182.64,182.57,36.75662112]
[1734962294227,0.5126,182.67,182.59,12.97973712]
[1734962294430,0.5126,182.67,182.6,23.776884]
[1734962296126,6.0989,182.68,182.61,13.10522712]
[1734962296288,0.6767104,182.69,182.62,23.776884]
[1734962296494,0.6767104,182.69,182.64,23.776884]
[1734962297003,0.6767104,182.69,182.66,23.776884]
[1734962297315,0.6767104,182.69,182.67,12.97973712]
[1734962297506,0.6767104,182.69,182.66,12.97973712]
[1734962297708,0.6767104,182.69,182.67,23.776884]
[1734962298604,0.6767104,182.69,182.65,23.776884]
[1734962300736,0.6767104,182.69,182.65,44.52584754]
[1734962301054,0.6767104,182.69,182.67,23.776884]
[1734962302139,0.6767104,182.69,182.66,23.902374]
[1734962305317,0.6767104,182.69,182.65,136.7]
[1734962307241,20.0,182.67,182.57,159.04956354]
[1734962307845,20.0,182.67,182.57,138.3006]
[1734962308255,20.0,182.67,182.57,159.04956354]
[1734962308549,20.0,182.67,182.58,23.776884]
[1734962308728,1.02659215,182.66,182.57,136.7]
[1734962310251,1.02659215,182.66,182.57,23.776884]
[1734962310450,20.5126,182.67,182.57,44.52584754]
[1734962310622,20.5126,182.67,182.59,23.776884]
[1734962312652,20.0,182.67,182.59,44.52584754]
[1734962313665,0.6767104,182.69,182.61,23.776884]
[1734962315455,20.0,182.67,182.61,23.776884]
[1734962315759,1.02655661,182.66,182.55,20.74896354]
[1734962315964,1.02655661,182.66,182.53,136.7]
[1734962315965,1.02655661,182.66,182.54,20.74896354]
[1734962316274,1.02655661,182.66,182.53,157.44896354]
[1734962316639,20.0,182.62,182.5,20.74896354]
[1734962316836,1.02696534,182.61,182.48,20.74896354]
[1734962317054,1.02696534,182.61,182.47,1.6657]
[1734962317467,1.02696534,182.61,182.47,22.41466354]
[1734962318276,1.02696534,182.61,182.48,23.776884]
[1734962319066,1.02696534,182.61,182.48,44.52584754]
[1734962321346,1.02696534,182.61,182.49,20.74896354]
[1734962321547,1.02696534,182.61,182.51,23.776884]
[1734962321862,20.0,182.62,182.53,23.776884]
[1734962323158,6.5484,182.65,182.56,23.776884]
[1734962323378,1.02670432,182.64,182.56,23.776884]
[1734962324371,20.0,182.62,182.56,23.776884]
[1734962324571,20.0,182.62,182.53,23.776884]
[1734962324772,20.0,182.62,182.53,44.54469528]
[1734962325600,1.02685743,182.61,182.53,23.776884]
[1734962325981,1.02685743,182.61,182.5,20.76781128]
[1734962326183,1.02685743,182.61,182.48,20.76781128]
[1734962326496,1.02685743,182.61,182.49,20.76781128]
[1734962327319,1.02685743,182.61,182.5,20.76781128]
[1734962327719,1.02685743,182.61,182.51,44.54469528]
[1734962328200,20.0,182.62,182.53,23.776884]
[1734962328400,20.0,182.62,182.53,44.54469528]
[1734962328703,20.0,182.62,182.55,44.54469528]
[1734962328904,1.02690788,182.64,182.56,20.76781128]
[1734962329107,6.5484,182.65,182.57,23.776884]
[1734962330412,1.026687,182.64,182.57,23.776884]
[1734962330599,6.5484,182.65,182.57,23.776884]
[1734962331411,6.5484,182.65,182.57,44.54469528]
[1734962332003,6.5484,182.65,182.57,23.776884]
[1734962336025,20.0,182.62,182.57,23.776884]
[1734962336229,1.02683793,182.61,182.52,157.46781128]
[1734962337120,1.02683793,182.61,182.53,20.76781128]
[1734962337634,1.02683793,182.61,182.54,23.776884]
[1734962338341,20.0,182.62,182.54,23.776884]
[1734962339333,1.02686453,182.61,182.54,23.776884]
[1734962339835,1.02686453,182.61,182.53,23.776884]
[1734962341711,1.02686453,182.61,182.51,20.76781128]
[1734962342135,1.02686453,182.61,182.52,23.776884]
[1734962344418,20.0,182.57,182.41,145.16102532]
[1734962344617,20.0,182.57,182.42,20.76781128]
[1734962344618,1.0273349,182.56,182.42,20.76781128]
[1734962344822,21.0273349,182.56,182.44,20.76781128]
[1734962345025,21.0273349,182.56,182.43,20.76781128]
[1734962345210,21.0273349,182.56,182.44,20.76781128]
[1734962346223,21.0273349,182.56,182.45,12.99186864]
[1734962346436,1.0273349,182.56,182.46,23.776884]
[1734962347110,20.0,182.55,182.46,23.776884]
[1734962347311,1.02722115,182.54,182.46,23.776884]
[1734962347534,1.02722115,182.54,182.45,23.776884]
[1734962348435,1.02739005,182.56,182.45,23.776884]
[1734962348612,1.02739005,182.56,182.43,12.99186864]
[1734962348817,20.0,182.52,182.41,12.99186864]
[1734962349138,0.5126,182.5,182.4,149.69186864]
[1734962349540,0.5126,182.5,182.41,12.99186864]
[1734962349739,0.5126,182.5,182.42,12.99186864]
[1734962349931,0.5126,182.5,182.41,12.99186864]
[1734962350150,0.5126,182.5,182.42,12.99186864]
[1734962350519,0.5126,182.5,182.44,23.776884]
[1734962350944,20.0,182.52,182.45,12.99186864]
[1734962351157,20.0,182.52,182.46,23.776884]
[1734962352654,1.02731204,182.51,182.42,12.99186864]
[1734962353841,1.02731204,182.51,182.38,23.776884]
[1734962354017,1.02731204,182.51,182.38,12.99186864]
[1734962354932,1.02731204,182.51,182.4,12.99186864]
[1734962355431,1.02731204,182.51,182.41,23.776884]
[1734962355621,1.02731204,182.51,182.4,23.776884]
[1734962356145,1.02731204,182.51,182.39,23.776884]
[1734962356342,0.5126,182.46,182.38,23.776884]
[1734962356549,1.54046451,182.46,182.35,12.99186864]
[1734962356855,1.54046451,182.46,182.36,12.99186864]
[1734962357040,1.54046451,182.46,182.37,12.99186864]
[1734962357525,1.54046451,182.46,182.36,12.99186864]
[1734962357922,0.5126,182.46,182.37,12.99186864]
[1734962358124,1.02770168,182.45,182.35,12.99186864]
[1734962358632,1.02770168,182.45,182.36,23.776884]
[1734962358839,1.02770168,182.45,182.36,12.99186864]
[1734962359032,1.02770168,182.45,182.37,23.776884]
[1734962359729,1.02770168,182.45,182.38,12.99186864]
[1734962359938,0.5126,182.46,182.4,36.76875264]
[1734962360436,20.0,182.47,182.4,36.76875264]
[1734962360619,1.0275544,182.46,182.4,23.776884]
[1734962360821,20.0,182.47,182.39,23.776884]
[1734962361045,20.0,182.47,182.39,36.76875264]
[1734962361551,7.6655657,182.5,182.42,12.99186864]
[1734962361722,6.638,182.5,182.43,36.76875264]
[1734962361923,7.66536875,182.5,182.43,23.776884]
[1734962362125,6.638,182.5,182.43,23.776884]
[1734962362933,6.638,182.5,182.43,36.76875264]
[1734962363128,31.86707674,182.51,182.45,23.776884]
[1734962363340,31.86707674,182.51,182.45,36.76875264]
[1734962363544,31.86707674,182.51,182.47,23.776884]
[1734962363927,31.86707674,182.51,182.45,36.76875264]
[1734962364448,31.86707674,182.51,182.45,23.776884]
[1734962364652,31.86707674,182.51,182.44,23.776884]
[1734962365149,31.86707674,182.51,182.42,23.776884]
[1734962365340,20.0,182.48,182.42,23.776884]
[1734962365549,20.0,182.48,182.41,23.776884]
[1734962365731,20.0,182.48,182.41,36.76875264]
[1734962365932,20.0,182.48,182.41,12.99186864]
[1734962366239,20.0,182.48,182.42,20.7933612]
[1734962367053,20.0,182.48,182.43,23.776884]
[1734962367445,31.86707674,182.51,182.43,44.5702452]
[1734962367956,31.86707674,182.51,182.46,23.776884]
[1734962368155,31.86707674,182.51,182.46,44.5702452]
[1734962368654,31.86707674,182.51,182.46,23.776884]
[1734962371041,31.86707674,182.51,182.45,23.776884]
[1734962371357,31.86707674,182.51,182.45,44.5702452]
[1734962371559,31.86707674,182.51,182.47,23.776884]
[1734962371743,0.5126,182.55,182.47,44.5702452]
[1734962371945,20.0,182.55,182.49,23.776884]
[1734962372153,6.4534,182.58,182.49,44.5702452]
[1734962372349,6.4534,182.58,182.5,20.9188512]
[1734962372554,6.4534,182.58,182.51,20.7933612]
[1734962372743,0.5126,182.59,182.52,44.5702452]
[1734962372947,0.5126,182.59,182.52,20.7933612]
[1734962373148,0.5126,182.59,182.53,23.776884]
[1734962375171,20.0,182.6,182.53,23.776884]
[1734962375479,6.3214,182.63,182.56,44.5702452]
[1734962375691,6.3214,182.63,182.57,44.5702452]
[1734962375858,6.1875,182.67,182.57,44.5702452]
[1734962376060,6.1875,182.67,182.59,23.776884]
[1734962376358,6.1875,182.67,182.59,44.5702452]
[1734962376556,6.1875,182.67,182.59,23.776884]
[1734962376738,6.1875,182.67,182.59,44.5702452]
[1734962378282,6.1875,182.67,182.6,20.7933612]
[1734962378450,0.6767104,182.69,182.62,44.5702452]
[1734962378651,0.6767104,182.69,182.63,23.776884]
[1734962379052,0.6767104,182.69,182.62,23.776884]
[1734962379255,0.6767104,182.69,182.61,23.776884]
[1734962379558,0.6767104,182.69,182.6,23.776884]
[1734962380768,20.0,182.68,182.6,23.776884]
[1734962381337,20.0,182.68,182.6,44.5702452]
[1734962381542,0.6767104,182.69,182.63,23.776884]
[1734962381739,0.6767104,182.69,182.63,20.7933612]
[1734962382055,0.6767104,182.69,182.64,23.776884]
[1734962382649,0.6767104,182.69,182.66,23.776884]
[1734962382967,0.6767104,182.69,182.67,0.12549]
[1734962384448,0.6767104,182.69,182.68,20.9188512]
[1734962384643,0.6767104,182.69,182.68,44.6957352]
[1734962385143,0.6767104,182.69,182.68,23.776884]
[1734962385496,0.6767104,182.69,182.67,23.776884]
[1734962385794,0.6767104,182.69,182.66,20.7933612]
[1734962385953,0.6767104,182.69,182.67,23.776884]
[1734962386654,0.6767104,182.69,182.64,151.21892775]
[1734962386859,0.6767104,182.69,182.64,136.7]
[1734962387252,0.6767104,182.69,182.64,149.66172775]
[1734962387662,0.6767104,182.69,182.66,12.96172775]
[1734962388189,0.6767104,182.69,182.67,23.776884]
[1734962389592,0.6767104,182.69,182.66,23.776884]
[1734962393507,0.6767104,182.69,182.66,36.73861175]
[1734962394545,0.6767104,182.69,182.66,23.776884]
[1734962395255,0.6767104,182.69,182.61,12.96172775]
[1734962395620,20.0,182.68,182.61,12.96172775]
[1734962395855,1.02640837,182.67,182.59,12.96172775]
[1734962396815,1.02640837,182.67,182.58,12.96172775]
[1734962397573,1.02640837,182.67,182.59,23.776884]
[1734962399552,1.02640837,182.67,182.58,23.776884]
[1734962399747,1.02640837,182.67,182.59,12.96172775]
[1734962400049,1.02640837,182.67,182.6,23.776884]
[1734962400261,1.02640837,182.67,182.6,12.96172775]
[1734962400463,1.02647906,182.67,182.59,12.96172775]
[1734962400628,20.0,182.68,182.6,12.96172775]
[1734962400829,0.6767104,182.69,182.62,12.96172775]
[1734962401138,0.6767104,182.69,182.61,12.96172775]
[1734962401548,0.6767104,182.69,182.62,23.776884]
[1734962402578,20.0,182.68,182.62,36.73861175]
[1734962403088,20.0,182.68,182.62,23.776884]
[1734962403863,1.02642477,182.67,182.62,23.776884]
[1734962404063,20.0,182.68,182.61,23.776884]
[1734962404671,1.02653669,182.67,182.6,23.776884]
[1734962405796,20.0,182.68,182.6,23.776884]
[1734962405997,1.02653802,182.67,182.56,12.96172775]
[1734962406172,1.02653802,182.67,182.51,152.0605]
[1734962406489,1.02653802,182.67,182.56,12.96172775]
[1734962406690,20.0,182.68,182.6,12.96172775]
[1734962406859,20.0,182.68,182.61,12.96172775]
[1734962407254,20.0,182.68,182.6,12.96172775]
[1734962407486,20.0,182.68,182.59,12.96172775]
[1734962407662,20.0,182.68,182.6,23.776884]
[1734962407866,20.0,182.68,182.59,12.96172775]
[1734962408068,20.0,182.68,182.54,160.476884]
[1734962408069,1.02649254,182.67,182.6,23.776884]
[1734962408602,6.0064,182.66,182.53,12.96172775]
[1734962408749,6.0064,182.66,182.52,12.96172775]
[1734962408750,20.0,182.63,182.52,12.96172775]
[1734962408947,1.53953329,182.62,182.51,14.62482775]
[1734962409174,1.53953329,182.62,182.47,1.5731]
[1734962409362,1.53953329,182.62,182.49,12.96172775]
[1734962409701,20.0,182.58,182.49,12.96172775]
[1734962409908,1.02713938,182.57,182.49,12.96172775]
[1734962410082,20.0,182.58,182.5,12.96172775]
[1734962410404,20.0,182.58,182.51,12.96172775]
[1734962410605,20.0,182.58,182.47,1.5731]
[1734962410606,20.0,182.58,182.5,12.96172775]
[1734962411175,20.0,182.58,182.51,12.96172775]
[1734962411412,20.0,182.58,182.5,12.96172775]
[1734962411919,1.02707665,182.57,182.49,12.96172775]
[1734962412207,1.02707665,182.57,182.47,12.96172775]
[1734962412371,1.02707665,182.57,182.45,12.96172775]
[1734962412775,20.0,182.58,182.48,12.96172775]
[1734962413370,1.02708542,182.57,182.48,12.96172775]
[1734962413587,1.02708542,182.57,182.47,23.776884]
[1734962414607,20.0,182.58,182.47,23.776884]
[1734962414811,20.0,182.58,182.5,12.96172775]
[1734962415019,6.2882,182.61,182.53,12.96172775]
[1734962415317,0.5126,182.62,182.56,23.776884]
[1734962415490,6.0418,182.66,182.57,12.96172775]
[1734962415689,6.0418,182.66,182.58,23.776884]
[1734962415996,6.0418,182.66,182.6,23.776884]
[1734962416816,6.0418,182.66,182.59,23.776884]
[1734962417224,6.0418,182.66,182.59,36.73861175]
[1734962417503,0.5126,182.67,182.59,36.73861175]
[1734962417814,1.70324395,182.69,182.6,12.96172775]
[1734962418313,1.70324395,182.69,182.61,23.776884]
[1734962418620,20.0,182.67,182.61,23.776884]
[1734962418781,1.70324395,182.69,182.61,23.776884]
[1734962419292,1.48793129,182.69,182.61,23.776884]
[1734962420192,20.0,182.67,182.58,12.96172775]
[1734962420376,1.02667847,182.66,182.58,12.96172775]
[1734962420789,1.02667847,182.66,182.57,12.96172775]
[1734962421518,1.02667847,182.66,182.53,12.96172775]
[1734962422026,1.02667847,182.66,182.55,12.96172775]
[1734962422778,0.46139774,182.69,182.61,12.96172775]
[1734962423029,0.46139774,182.69,182.62,23.776884]
[1734962423374,0.46139774,182.69,182.63,0.12549]
[1734962424129,0.46139774,182.69,182.64,23.776884]
[1734962424884,0.46139774,182.69,182.62,136.7]
[1734962424885,0.46139774,182.69,182.63,23.776884]
[1734962425125,0.46139774,182.69,182.63,36.73861175]
[1734962425719,0.46139774,182.69,182.66,12.96172775]
[1734962426081,0.46139774,182.69,182.67,23.776884]
[1734962427087,0.46139774,182.69,182.68,36.86410175]
[1734962427896,0.46139774,182.69,182.68,173.56410175]
[1734962428702,0.46139774,182.69,182.68,175.13870175]
[1734962429291,0.5126,182.81,182.69,0.12549]
[1734962429606,6.1567,182.83,182.76,12.96172775]
[1734962429803,6.1567,182.83,182.73,20.0]
[1734962429804,0.5126,182.86,182.77,12.96172775]
[1734962430001,0.5126,182.86,182.78,12.96172775]
[1734962430382,6.8334104,182.88,182.79,13.08721775]
[1734962430581,6.8334104,182.88,182.8,12.96172775]
[1734962431088,6.8334104,182.88,182.79,12.96172775]
[1734962431506,6.8334104,182.88,182.8,36.73861175]
[1734962431684,1.02528493,182.87,182.8,23.776884]
[1734962431885,1.02528493,182.87,182.78,23.776884]
[1734962432403,20.0,182.85,182.78,23.776884]
[1734962432829,1.02555568,182.84,182.73,12.96172775]
[1734962433116,1.02555568,182.84,182.7,12.96172775]
[1734962433508,1.02555568,182.84,182.69,13.08721775]
[1734962433710,20.0,182.8,182.67,12.96172775]
[1734962434012,1.02596989,182.79,182.68,12.96172775]
[1734962434307,1.02596989,182.79,182.68,20.73194308]
[1734962434806,1.02596989,182.79,182.64,136.7]
[1734962435114,1.02596989,182.79,182.7,20.73194308]
[1734962435497,1.02587582,182.79,182.7,20.73194308]
[1734962435809,1.02587582,182.79,182.65,0.12549]
[1734962435997,1.02587582,182.79,182.69,20.73194308]
[1734962436204,1.02587582,182.79,182.7,23.776884]
[1734962437720,1.02587582,182.79,182.7,44.50882708]
[1734962438016,1.02587582,182.79,182.7,23.776884]
[1734962438988,1.02587582,182.79,182.7,44.50882708]
[1734962439308,20.0,182.8,182.72,23.776884]
[1734962439515,20.0,182.8,182.72,20.73194308]
[1734962439806,20.0,182.8,182.73,23.776884]
[1734962440816,1.02583542,182.79,182.72,23.776884]
[1734962441191,1.02583542,182.79,182.71,23.776884]
[1734962442819,20.0,182.8,182.71,44.50882708]
[1734962443018,20.0,182.8,182.72,20.73194308]
[1734962443206,20.0,182.8,182.73,23.776884]
[1734962444158,20.0,182.8,182.75,20.73194308]
[1734962444345,6.9052,182.83,182.76,23.776884]
[1734962444545,6.9052,182.83,182.75,23.776884]
[1734962445264,6.9052,182.83,182.75,44.50882708]
[1734962445558,20.0,182.8,182.75,23.776884]
[1734962445961,6.3926,182.83,182.77,23.776884]
[1734962446166,6.3926,182.83,182.77,44.50882708]
[1734962446543,7.1072,182.87,182.78,20.73194308]
[1734962446851,7.1072,182.87,182.79,23.776884]
[1734962447181,1.02545517,182.86,182.79,23.776884]
[1734962447365,7.1072,182.87,182.79,23.776884]
[1734962447558,20.0,182.84,182.79,23.776884]
[1734962447756,7.1072,182.87,182.79,23.776884]
[1734962448158,6.5946,182.87,182.79,23.776884]
[1734962448462,0.6767104,182.88,182.81,23.776884]
[1734962448637,0.6767104,182.88,182.81,44.50882708]
[1734962448842,0.6767104,182.88,182.8,23.902374]
[1734962449044,0.6767104,182.88,182.8,44.63431708]
[1734962449353,0.6767104,182.88,182.82,23.776884]
[1734962450468,20.6767104,182.88,182.82,23.776884]
[1734962450969,20.6767104,182.88,182.82,44.50882708]
[1734962451267,20.6767104,182.88,182.85,20.73194308]
[1734962451268,0.6767104,182.88,182.85,20.73194308]
[1734962451570,0.6767104,182.88,182.86,23.776884]
[1734962452144,0.6767104,182.88,182.86,44.50882708]
[1734962452646,0.6767104,182.88,182.86,23.776884]
[1734962452959,0.6767104,182.88,182.78,20.73194308]
[1734962453772,6.0229,182.87,182.76,20.73194308]
[1734962453946,6.0229,182.87,182.73,159.02864308]
[1734962453947,20.0,182.84,182.73,159.02864308]
[1734962454278,1.02561223,182.83,182.72,20.73194308]
[1734962455067,1.02561223,182.83,182.73,20.73194308]
[1734962455467,1.02561223,182.83,182.74,20.73194308]
[1734962456072,20.0,182.84,182.75,23.776884]
[1734962456247,20.0,182.84,182.76,20.73194308]
[1734962456570,20.0,182.84,182.75,44.50882708]
[1734962457273,20.0,182.84,182.76,20.73194308]
[1734962457479,20.0,182.84,182.76,0.12549]
[1734962457772,20.0,182.84,182.77,23.776884]
[1734962457971,20.0,182.84,182.78,20.73194308]
[1734962458197,20.0,182.84,182.79,23.776884]
[1734962458657,20.0,182.84,182.78,23.902374]
[1734962460864,20.0,182.84,182.78,23.776884]
[1734962462198,1.02562413,182.83,182.73,20.73194308]
[1734962462483,1.02562413,182.83,182.71,20.73194308]
[1734962462690,1.0964,182.53,182.41,129.29419294]
[1734962462875,138.39901782,182.43,182.24,1.04e-05]
[1734962463183,23.776884,182.35,182.16,17.13680862]
[1734962463479,1.02906412,182.34,182.29,1.67e-06]
[1734962463810,23.776884,182.33,182.09,271.00317184]
[1734962463967,1.0289854,182.32,182.09,224.19269056]
[1734962464157,1.0289854,182.32,182.06,27.02772081]
[1734962464363,34.94271814,182.31,182.06,27.02772081]
[1734962464585,20.0,182.28,182.06,27.02772081]
[1734962464768,21.02894183,182.27,182.06,27.02772081]
[1734962465079,21.02894183,182.27,182.06,7.93840784]
[1734962465080,11.16583414,182.26,182.06,7.93840784]
[1734962465290,11.16583414,182.26,182.04,13.7325]
[1734962465291,20.0,182.23,182.01,136.7]
[1734962465467,21.02929994,182.22,182.02,20.73194308]
[1734962465657,26.053613,182.25,182.07,20.73194308]
[1734962465994,26.053613,182.25,182.1,0.12549]
[1734962465995,3.18991851,182.22,182.1,0.12549]
[1734962466196,3.18991851,182.22,182.09,33.89112941]
[1734962466496,3.18991851,182.22,182.07,53.62330973]
[1734962466675,11.16583414,182.21,182.07,87.51443914]
[1734962466992,11.16583414,182.21,182.09,33.89112941]
[1734962467296,37.21944714,182.2,182.07,53.62330973]
[1734962467605,27.818424,182.19,182.07,53.62330973]
[1734962467913,27.24792198,182.17,182.07,53.62330973]
[1734962468101,27.24792198,182.17,182.07,87.51443914]
[1734962468405,27.32523403,182.15,182.08,0.12549]
[1734962468568,27.32523403,182.15,182.08,53.74879973]
[1734962468899,11.16583414,182.14,182.11,20.0]
[1734962469102,11.16583414,182.14,182.04,67.35640973]
[1734962469399,11.16583414,182.13,182.04,67.35640973]
[1734962469802,11.16583414,182.13,182.05,0.12549]
[1734962469968,0.35800167,182.12,182.05,0.12549]
[1734962470170,11.52383581,182.12,182.08,0.12549]
[1734962470391,11.52383581,182.12,182.08,53.74879973]
[1734962470585,26.053613,182.11,182.1,0.12549]
[1734962470977,26.053613,182.2,182.16,0.12549]
[1734962471183,27.818424,182.19,182.13,33.89112941]
[1734962471505,63.27306015,182.19,182.12,53.62330973]
[1734962471872,1.02873786,182.29,182.12,53.62330973]
[1734962471873,20.0,182.26,182.12,53.62330973]
[1734962472396,20.0,182.26,182.09,101.24383914]
[1734962473179,1.02883287,182.25,182.09,67.35270973]
[1734962473508,1.02883287,182.25,182.09,53.62330973]
[1734962473712,1.02883287,182.25,182.07,33.89112941]
[1734962474014,1.02883287,182.25,182.05,47.62352941]
[1734962474311,20.0,182.26,182.11,33.89112941]
[1734962474508,20.0,182.26,182.07,33.89112941]
[1734962474509,20.0,182.26,182.13,33.89112941]
[1734962474718,20.0,182.26,182.12,33.89112941]
[1734962475094,20.0,182.26,182.1,33.89112941]
[1734962475626,20.0,182.26,182.11,23.776884]
[1734962476128,20.0,182.26,182.14,33.89112941]
[1734962476297,20.0,182.26,182.18,33.89112941]
[1734962476495,20.0,182.26,182.19,23.902374]
[1734962477023,20.0,182.26,182.18,23.902374]
[1734962477203,20.0,182.26,182.2,0.12549]
[1734962477522,20.0,182.26,182.22,0.12549]
[1734962478921,0.12549,182.35,182.22,0.12549]
[1734962479434,21.955477,182.37,182.22,0.12549]
[1734962479800,1.02828064,182.36,182.22,0.12549]
[1734962480197,1.02828064,182.36,182.24,0.12549]
[1734962480693,20.0,182.34,182.24,0.12549]
[1734962482602,20.0,182.34,182.22,0.12549]
[1734962485909,23.776884,182.42,182.26,23.902374]
[1734962486110,0.12549,182.4,182.26,23.902374]
[1734962486342,1.02819018,182.39,182.26,23.902374]
[1734962487199,20.0,182.39,182.26,23.902374]